fUSD/lending_fUSD_20240503
["ID","MTS","AMOUNT","RATE_DAILY","PERIOD"]
[325340331,1714744242997,-760.8004347,0.00031076,2]
[325340332,1714744243009,-328.65450663,0.0003132,2]
[325340333,1714744243018,-760.8004347,0.00032451,4]
[325340334,1714744243028,-328.65450663,0.00032941,2]
[325340335,1714744243038,-500.0,0.00033,120]
[325340336,1714744243047,-760.8004347,0.00033827,6]
[325340337,1714744243056,-500.0,0.00034,120]
[325340338,1714744243065,-200.0,0.00034426,2]
[325340339,1714744243075,-328.65450663,0.00034561,2]
[325340340,1714744243084,-500.0,0.00035,120]
[325340341,1714744243094,-760.8004347,0.00035202,7]
[325340342,1714744243103,-5088.5566,0.000354,2]
[325340343,1714744243114,-895.9951,0.000354,2]
[325340344,1714744243124,-20249.3942,0.000354,2]
[325340345,1714744243133,-1605630.34925156,0.000355,2]
[325340346,1714744243143,-158.75,0.000355,2]
[325340347,1714744243153,-161.08,0.000355,2]
[325340348,1714744243162,-2101.01942897,0.000356,30]
[325340349,1714744243173,-419.48,0.00035677,2]
[325340350,1714744243183,-756.16141955,0.00035843,2]
[325340351,1714744243192,-1719.783198,0.00035843,2]
[325340352,1714744243202,-364.0416314,0.00036,120]
[325340353,1714744243212,-328.65450663,0.00036181,2]
[325340354,1714744243221,-760.8004347,0.00036578,9]
[325340355,1714744243232,-2987.0,0.00037,60]
[325340356,1714744243241,-791.91451352,0.00037,2]
[325340357,1714744243251,-151.21,0.00037023,2]
[325340358,1714744243260,-328.65450663,0.00037802,2]
[325340359,1714744243270,-760.8004347,0.00037953,11]
[325340360,1714744243279,-200.0,0.00038251,2]
[325340361,1714744243288,-500.0,0.00038328,45]
[325340362,1714744243298,-500.0,0.00038328,45]
[325340363,1714744243308,-500.0,0.00038602,47]
[325340364,1714744243318,-500.0,0.00038602,47]
[325340365,1714744243328,-500.0,0.00038876,49]
[325340366,1714744243337,-500.0,0.00038876,49]
[325340367,1714744243347,-881.87566879,0.000389,30]
[325340368,1714744243357,-4088.79484012,0.000389,15]
[325340369,1714744243367,-500.0,0.0003915,51]
[325340370,1714744243377,-500.0,0.0003915,51]
[325340371,1714744243387,-760.8004347,0.00039329,13]
[325340372,1714744243397,-500.0,0.00039424,53]
[325340373,1714744243407,-280.31109569,0.00039424,53]
[325340374,1714744243417,-500.0,0.00039698,55]
[325340375,1714744243429,-314.84756035,0.00039854,2]
[325340376,1714744243439,-500.0,0.00039972,57]
[325340377,1714744243451,-500.0,0.0004,5]
[325340378,1714744243462,-500.0,0.0004,5]
[325340379,1714744243473,-557.91381552,0.0004,4]
[325340380,1714744243482,-9346.16467279,0.0004,10]
[325340381,1714744243493,-193.31284266,0.0004,2]
[325340382,1714744243503,-155.0,0.0004,4]
[325340383,1714744243513,-22153.95208094,0.0004,4]
[325340384,1714744243523,-967.62,0.0004,11]
[325340385,1714744243534,-8709.0,0.0004,11]
[325340386,1714744243549,-500.0,0.00040246,59]
[325340387,1714744243559,-3285.7,0.00040327,79]
[325340388,1714744243569,-500.0,0.0004052,61]
[325340389,1714744243580,-760.8004347,0.00040704,14]
[325340390,1714744243590,-500.0,0.00040794,63]
[325340391,1714744243599,-5000.0,0.00041,12]
[325340392,1714744243609,-500.0,0.00041068,65]
[325340393,1714744243618,-1000.0,0.00041095,2]
[325340394,1714744243631,-157.0,0.00041096,2]
[325340395,1714744243640,-500.0,0.00041342,67]
[325340396,1714744243650,-500.0,0.00041616,69]
[325340397,1714744243660,-564.0,0.0004171,30]
[325340398,1714744243672,-500.0,0.0004189,71]
[325340399,1714744243682,-5000.0,0.00042,13]
[325340400,1714744243691,-200.0,0.00042077,2]
[325340401,1714744243701,-760.8004347,0.0004208,16]
[325340402,1714744243711,-10152.87594109,0.00042138,6]
[325340403,1714744243721,-564.0,0.0004214,30]
[325340404,1714744243730,-500.0,0.00042164,73]
[325340405,1714744243740,-531.0,0.00042166,7]
[325340406,1714744243750,-166.29,0.000422,7]
[325340407,1714744243759,-2110.0,0.00042335,15]
[325340408,1714744243769,-1106.37,0.00042383,20]
[325340409,1714744243778,-122954.52859678,0.000424,7]
[325340410,1714744243788,-132830.86,0.000424,10]
[325340411,1714744243797,-411.21397216,0.00042438,75]
[325340412,1714744243806,-1000.0,0.00042465,2]
[325340413,1714744243816,-156.87375398,0.000425,30]
[325340414,1714744243826,-1106.37,0.0004252,21]
[325340415,1714744243836,-564.0,0.0004257,30]
[325340416,1714744243845,-500.0,0.00042618,20]
[325340417,1714744243855,-1106.37,0.00042657,22]
[325340418,1714744243864,-1106.37,0.00042794,23]
[325340419,1714744243874,-2110.0,0.00042835,15]
[325340420,1714744243884,-213.0,0.0004293,2]
[325340421,1714744243894,-1106.37,0.00042931,24]
[325340422,1714744243904,-1093.61179229,0.00042958,5]
[325340423,1714744243915,-1038.54597287,0.00042958,5]
[325340424,1714744243926,-170834.96,0.00043,10]
[325340425,1714744243936,-451.71304811,0.00043,30]
[325340426,1714744243946,-482.81461096,0.00043,30]
[325340427,1714744243957,-564.0,0.00043,30]
[325340428,1714744243967,-500.0,0.00043,120]
[325340429,1714744243977,-160.00073898,0.00043,15]
[325340430,1714744243987,-171.0,0.00043,90]
[325340431,1714744243997,-1000.0,0.00043051,30]
[325340432,1714744244007,-500.0,0.00043051,20]
[325340433,1714744244017,-1106.37,0.00043068,25]
[325340434,1714744244027,-152.0,0.00043089,3]
[325340435,1714744244038,-500.0,0.0004312,31]
[325340436,1714744244048,-500.0,0.0004312,33]
[325340437,1714744244059,-500.0,0.0004312,39]
[325340438,1714744244069,-500.0,0.0004312,34]
[325340439,1714744244079,-500.0,0.0004312,32]
[325340440,1714744244091,-500.0,0.0004312,38]
[325340441,1714744244100,-500.0,0.000432,120]
[325340442,1714744244110,-1106.37,0.00043205,26]
[325340443,1714744244120,-2110.0,0.00043335,15]
[325340444,1714744244130,-1106.37,0.00043342,27]
[325340445,1714744244140,-176.99227982,0.00043396,3]
[325340446,1714744244150,-500.0,0.000434,120]
[325340447,1714744244159,-564.0,0.0004343,30]
[325340448,1714744244169,-760.8004347,0.00043455,18]
[325340449,1714744244180,-1106.37,0.00043479,28]
[325340450,1714744244190,-1000.0,0.00043483,30]
[325340451,1714744244200,-500.0,0.00043483,20]
[325340452,1714744244210,-500.0,0.000435,120]
[325340453,1714744244219,-2000.0,0.00043616,5]
[325340454,1714744244229,-2000.0,0.00043616,5]
[325340455,1714744244238,-1106.37,0.00043616,29]
[325340456,1714744244248,-3584.4,0.00043653,98]
[325340457,1714744244258,-1560.32144644,0.00043708,2]
[325340458,1714744244268,-1106.37,0.00043753,30]
[325340459,1714744244277,-3497.72576639,0.00043788,2]
[325340460,1714744244287,-10213.8289752,0.000438,120]
[325340461,1714744244296,-150.0,0.000438,33]
[325340462,1714744244306,-1000.0,0.000438,80]
[325340463,1714744244315,-150.0,0.00043808,30]
[325340464,1714744244325,-237.72900437,0.00043808,30]
[325340465,1714744244334,-150.0,0.00043808,30]
[325340466,1714744244344,-150.0,0.00043808,30]
[325340467,1714744244354,-20785.3559773,0.00043829,2]
[325340468,1714744244364,-218.66349413,0.00043829,2]
[325340469,1714744244632,-1966.2199782,0.00043829,2]
[325340470,1714744244641,-1006.8174505,0.00043834,2]
[325340471,1714744244651,-70051.65861897,0.00043834,20]
[325340472,1714744244662,-554.30660669,0.00043835,30]
[325340473,1714744244672,-500.0,0.00043835,30]
[325340474,1714744244681,-500.0,0.00043835,30]
[325340475,1714744244690,-500.0,0.00043835,30]
[325340476,1714744244699,-1262.5,0.00043835,30]
[325340477,1714744244709,-500.0,0.00043835,30]
[325340478,1714744244718,-501.99700741,0.00043835,30]
[325340479,1714744244729,-150.79059736,0.00043835,30]
[325340480,1714744244738,-506.12288367,0.00043835,30]
[325340481,1714744244748,-500.0,0.00043835,30]
[325340482,1714744244758,-500.0,0.00043835,30]
[325340483,1714744244767,-500.0,0.00043835,30]
[325340484,1714744244777,-500.0,0.00043835,30]
[325340485,1714744244787,-2748.82833751,0.00043835,4]
[325340486,1714744244797,-500.0,0.00043835,30]
[325340487,1714744244808,-500.0,0.00043835,30]
[325340488,1714744244818,-563.2596256,0.00043835,120]
[325340489,1714744244827,-155.0,0.00043835,2]
[325340490,1714744244836,-215.1575341,0.00043835,30]
[325340491,1714744244846,-3359.4069857,0.00043835,4]
[325340492,1714744244855,-30750.0,0.00043835,6]
[325340493,1714744244864,-500.0,0.00043835,30]
[325340494,1714744244874,-20134.65360129,0.00043835,2]
[325340495,1714744244883,-229.06186328,0.00043835,30]
[325340496,1714744244893,-500.0,0.00043835,30]
[325340497,1714744244903,-648.87230392,0.00043835,30]
[325340498,1714744244913,-500.0,0.00043835,30]
[325340499,1714744244924,-500.0,0.00043835,30]
[325340500,1714744244933,-500.74956827,0.00043835,30]
[325340501,1714744244942,-547.78952931,0.00043835,30]
[325340502,1714744244952,-500.0,0.00043835,30]
[325340503,1714744244961,-510.98620322,0.00043835,30]
[325340504,1714744244970,-500.0,0.00043835,30]
[325340505,1714744244980,-500.0,0.00043835,30]
[325340506,1714744244990,-500.0,0.00043835,30]
[325340507,1714744244999,-506.69636006,0.00043835,30]
[325340508,1714744245009,-500.0,0.00043835,30]
[325340509,1714744245018,-500.0,0.00043835,30]
[325340510,1714744245028,-500.0,0.00043835,30]
[325340511,1714744245038,-501.1371957,0.00043835,30]
[325340512,1714744245047,-500.0,0.00043835,30]
[325340513,1714744245057,-500.0,0.00043835,30]
[325340514,1714744245067,-530.41543678,0.00043835,30]
[325340515,1714744245077,-500.0,0.00043835,30]
[325340516,1714744245086,-500.0,0.00043835,30]
[325340517,1714744245095,-500.0,0.00043835,30]
[325340518,1714744245105,-500.0,0.00043835,30]
[325340519,1714744245114,-500.0,0.00043835,30]
[325340520,1714744245124,-502.5677678,0.00043835,30]
[325340521,1714744245133,-500.0,0.00043835,30]
[325340522,1714744245142,-500.0,0.00043835,30]
[325340523,1714744245151,-500.0,0.00043835,30]
[325340524,1714744245161,-500.0,0.00043835,30]
[325340525,1714744245170,-401.21191555,0.00043835,30]
[325340526,1714744245219,-98.78808445,0.00043835,30]
[325340527,1714744245229,-792.87,0.00043835,30]
[325340528,1714744245239,-500.0,0.00043835,30]
[325340529,1714744245249,-504.04447263,0.00043835,30]
[325340530,1714744245258,-500.0,0.00043835,30]
[325340531,1714744245267,-500.0,0.00043835,30]
[325340532,1714744245276,-500.0,0.00043835,30]
[325340533,1714744245286,-1595.53,0.00043835,30]
[325340534,1714744245296,-500.0,0.00043835,30]
[325340535,1714744245305,-500.0,0.00043835,30]
[325340536,1714744245314,-500.0,0.00043835,30]
[325340537,1714744245324,-500.0,0.00043835,30]
[325340538,1714744245333,-500.0,0.00043835,30]
[325340539,1714744245343,-500.0,0.00043835,30]
[325340540,1714744245352,-500.0,0.00043835,30]
[325340541,1714744245361,-500.0,0.00043835,30]
[325340542,1714744245371,-500.0,0.00043835,30]
[325340543,1714744245380,-500.0,0.00043835,30]
[325340544,1714744245390,-690.49,0.00043835,30]
[325340545,1714744245399,-500.0,0.00043835,30]
[325340546,1714744245409,-500.0,0.00043835,30]
[325340547,1714744245418,-500.9564496,0.00043835,30]
[325340548,1714744245429,-1298.85,0.00043835,30]
[325340549,1714744245438,-955.55,0.00043835,30]
[325340550,1714744245448,-500.0,0.00043835,30]
[325340551,1714744245457,-500.0,0.00043835,30]
[325340552,1714744245466,-500.0,0.00043835,30]
[325340553,1714744245476,-502.14458253,0.00043835,30]
[325340554,1714744245485,-500.0,0.00043835,30]
[325340555,1714744245494,-500.0,0.00043835,30]
[325340556,1714744245504,-500.0,0.00043835,30]
[325340558,1714744245514,-500.0,0.00043835,30]
[325340559,1714744245523,-536.7,0.00043835,30]
[325340561,1714744245536,-500.0,0.00043835,30]
[325340563,1714744245548,-770.36,0.00043835,30]
[325340564,1714744245557,-500.0,0.00043835,30]
[325340566,1714744245567,-500.66712319,0.00043835,30]
[325340567,1714744245576,-2118.8,0.00043835,30]
[325340568,1714744245587,-1545.67,0.00043835,30]
[325340570,1714744245596,-500.0,0.00043835,30]
[325340571,1714744245606,-500.0,0.00043835,30]
[325340573,1714744245616,-500.0,0.00043835,30]
[325340574,1714744245627,-500.0,0.00043835,30]
[325340575,1714744245639,-500.0,0.00043835,30]
[325340576,1714744245648,-500.0,0.00043835,30]
[325340577,1714744245658,-500.0,0.00043835,30]
[325340578,1714744245668,-500.0,0.00043835,30]
[325340579,1714744245679,-500.0,0.00043835,30]
[325340580,1714744245688,-500.0,0.00043835,30]
[325340581,1714744245697,-500.0,0.00043835,30]
[325340583,1714744245707,-500.0,0.00043835,30]
[325340585,1714744245716,-500.0,0.00043835,30]
[325340587,1714744245725,-618.47278632,0.00043835,30]
[325340589,1714744245735,-500.0,0.00043835,30]
[325340591,1714744245744,-500.0,0.00043835,30]
[325340593,1714744245754,-500.0,0.00043835,30]
[325340595,1714744245763,-500.0,0.00043835,30]
[325340597,1714744245772,-500.0,0.00043835,30]
[325340598,1714744245782,-500.0,0.00043835,30]
[325340599,1714744245792,-500.0,0.00043835,30]
[325340600,1714744245801,-500.0,0.00043835,30]
[325340601,1714744245811,-505.00609621,0.00043835,30]
[325340602,1714744245821,-500.0,0.00043835,30]
[325340603,1714744245831,-504.35826098,0.00043835,30]
[325340604,1714744245840,-526.00612597,0.00043835,30]
[325340605,1714744245850,-522.75,0.00043835,30]
[325340606,1714744245859,-500.0,0.00043835,30]
[325340607,1714744245869,-1135.08,0.00043835,30]
[325340608,1714744245879,-324.04,0.00043835,7]
[325340609,1714744245888,-500.0,0.00043835,30]
[325340610,1714744245898,-500.0,0.00043835,30]
[325340611,1714744245908,-500.0,0.00043835,30]
[325340612,1714744245918,-500.0,0.00043835,30]
[325340613,1714744245929,-1592.96,0.00043835,30]
[325340614,1714744245938,-500.0,0.00043835,30]
[325340615,1714744245948,-500.0,0.00043835,30]
[325340616,1714744245958,-500.0,0.00043835,30]
[325340617,1714744245968,-500.0,0.00043835,30]
[325340618,1714744245977,-599.03,0.00043835,30]
[325340619,1714744245987,-503.62241383,0.00043835,30]
[325340620,1714744245996,-500.0,0.00043835,30]
[325340621,1714744246005,-500.0,0.00043835,30]
[325340622,1714744246015,-500.0,0.00043835,30]
[325340623,1714744246024,-888.51,0.00043835,30]
[325340624,1714744246034,-961.58,0.00043835,30]
[325340625,1714744246043,-500.0,0.00043835,30]
[325340626,1714744246052,-172.92745586,0.00043835,30]
[325340627,1714744246062,-502.30312064,0.00043835,30]
[325340629,1714744246071,-500.0,0.00043835,30]
[325340631,1714744246082,-500.0,0.00043835,30]
[325340632,1714744246091,-1108.72,0.00043835,30]
[325340634,1714744246100,-500.0,0.00043835,30]
[325340636,1714744246109,-1190.29,0.00043835,30]
[325340638,1714744246119,-500.0,0.00043835,30]
[325340640,1714744246129,-500.0,0.00043835,30]
[325340642,1714744246139,-500.0,0.00043835,30]
[325340644,1714744246149,-500.0,0.00043835,30]
[325340646,1714744246159,-500.0,0.00043835,30]
[325340648,1714744246169,-506.17653399,0.00043835,30]
[325340650,1714744246179,-500.0,0.00043835,30]
[325340652,1714744246189,-500.0,0.00043835,30]
[325340654,1714744246198,-500.0,0.00043835,30]
[325340656,1714744246208,-1634.38,0.00043835,30]
[325340658,1714744246218,-527.85,0.00043835,30]
[325340660,1714744246228,-500.0,0.00043835,30]
[325340662,1714744246238,-500.0,0.00043835,30]
[325340664,1714744246247,-500.0,0.00043835,30]
[325340666,1714744246256,-500.0,0.00043835,30]
[325340668,1714744246265,-1056.34,0.00043835,30]
[325340670,1714744246274,-500.0,0.00043835,30]
[325340672,1714744246283,-500.0,0.00043835,30]
[325340674,1714744246293,-500.0,0.00043835,30]
[325340676,1714744246303,-1065.59,0.00043835,30]
[325340678,1714744246312,-359.98573684,0.00043835,30]
[325340680,1714744246322,-646.37990465,0.00043835,30]
[325340682,1714744246332,-719.48,0.00043835,30]
[325340685,1714744246341,-500.0,0.00043835,30]
[325340686,1714744246351,-500.0,0.00043835,30]
[325340688,1714744246360,-530.68,0.00043835,2]
[325340690,1714744246370,-500.0,0.00043835,30]
[325340692,1714744246379,-500.0,0.00043835,30]
[325340694,1714744246388,-500.0,0.00043835,30]
[325340696,1714744246398,-500.0,0.00043835,30]
[325340698,1714744246407,-500.0,0.00043835,30]
[325340700,1714744246417,-500.0,0.00043835,30]
[325340702,1714744246431,-500.0,0.00043835,30]
[325340704,1714744246441,-1242.51,0.00043835,30]
[325340706,1714744246450,-500.0,0.00043835,30]
[325340708,1714744246461,-663.94,0.00043835,30]
[325340710,1714744246471,-500.0,0.00043835,30]
[325340712,1714744246482,-2312.72,0.00043835,30]
[325340714,1714744246493,-816.65,0.00043835,30]
[325340717,1714744246503,-786.86,0.00043835,30]
[325340719,1714744246514,-500.0,0.00043835,30]
[325340721,1714744246524,-500.0,0.00043835,30]
[325340723,1714744246537,-500.0,0.00043835,30]
[325340725,1714744246548,-1843.37,0.00043835,30]
[325340727,1714744246558,-500.0,0.00043835,30]
[325340729,1714744246568,-1013.56,0.00043835,30]
[325340730,1714744246579,-500.0,0.00043835,30]
[325340732,1714744246590,-1000.0,0.00043835,15]
[325340735,1714744246603,-1198.89,0.00043835,30]
[325340737,1714744246613,-1722.97,0.00043835,30]
[325340739,1714744246624,-500.0,0.00043835,30]
[325340741,1714744246636,-500.0,0.00043835,30]
[325340743,1714744246646,-742.34,0.00043835,30]
[325340745,1714744246656,-500.0,0.00043835,30]
[325340747,1714744246665,-170.32170525,0.00043835,30]
[325340749,1714744246678,-500.0,0.00043835,30]
[325340751,1714744246688,-500.0,0.00043835,30]
[325340753,1714744246698,-500.0,0.00043835,30]
[325340755,1714744246707,-500.0,0.00043835,30]
[325340756,1714744246717,-500.0,0.00043835,30]
[325340758,1714744246726,-586.35,0.00043835,30]
[325340760,1714744246736,-500.0,0.00043835,30]
[325340763,1714744246746,-1149.71,0.00043835,30]
[325340765,1714744246755,-500.0,0.00043835,30]
[325340767,1714744246765,-500.0,0.00043835,30]
[325340768,1714744246775,-1135.17,0.00043835,30]
[325340771,1714744246785,-614.65,0.00043835,30]
[325340773,1714744246795,-500.0,0.00043835,30]
[325340774,1714744246805,-500.0,0.00043835,2]
[325340776,1714744246814,-500.0,0.00043835,30]
[325340778,1714744246823,-500.0,0.00043835,30]
[325340781,1714744246832,-500.0,0.00043835,30]
[325340783,1714744246842,-500.0,0.00043835,30]
[325340784,1714744246851,-820.01,0.00043835,30]
[325340787,1714744246860,-500.0,0.00043835,30]
[325340788,1714744246870,-500.0,0.00043835,30]
[325340790,1714744246880,-500.0,0.00043835,30]
[325340793,1714744246890,-500.0,0.00043835,30]
[325340794,1714744246899,-500.0,0.00043835,30]
[325340796,1714744246909,-500.0,0.00043835,30]
[325340798,1714744246919,-896.83,0.00043835,30]
[325340800,1714744246931,-500.0,0.00043835,30]
[325340802,1714744246941,-500.0,0.00043835,30]
[325340804,1714744246950,-500.0,0.00043835,30]
[325340806,1714744246960,-500.0,0.00043835,30]
[325340809,1714744246970,-501.74430291,0.00043835,30]
[325340811,1714744246979,-1723.1,0.00043835,30]
[325340813,1714744246989,-500.0,0.00043835,30]
[325340815,1714744246999,-502.72636439,0.00043835,30]
[325340817,1714744247008,-500.0,0.00043835,30]
[325340819,1714744247018,-1045.56,0.00043835,30]
[325340820,1714744247027,-500.0,0.00043835,30]
[325340822,1714744247037,-1467.83,0.00043835,30]
[325340824,1714744247046,-500.0,0.00043835,30]
[325340826,1714744247056,-500.0,0.00043835,30]
[325340828,1714744247065,-500.0,0.00043835,30]
[325340830,1714744247075,-523.28,0.00043835,30]
[325340833,1714744247085,-500.0,0.00043835,30]
[325340835,1714744247095,-501.51574508,0.00043835,30]
[325340837,1714744247104,-2370.56,0.00043835,30]
[325340839,1714744247113,-1259.38,0.00043835,30]
[325340841,1714744247123,-502.78526113,0.00043835,30]
[325340843,1714744247133,-1809.1,0.00043835,30]
[325340845,1714744247143,-554.05,0.00043835,30]
[325340846,1714744247153,-500.0,0.00043835,30]
[325340849,1714744247163,-1282.61,0.00043835,30]
[325340851,1714744247178,-774.65,0.00043835,30]
[325340853,1714744247196,-500.0,0.00043835,30]
[325340855,1714744247216,-500.0,0.00043835,30]
[325340857,1714744247232,-1216.25,0.00043835,30]
[325340859,1714744247243,-500.0,0.00043835,30]
[325340860,1714744247253,-716.85,0.00043835,30]
[325340862,1714744247263,-631.34,0.00043835,30]
[325340864,1714744247273,-500.0,0.00043835,30]
[325340866,1714744247283,-500.0,0.00043835,30]
[325340868,1714744247293,-500.0,0.00043835,30]
[325340870,1714744247303,-681.7,0.00043835,30]
[325340872,1714744247313,-501.59884741,0.00043835,30]
[325340874,1714744247322,-500.0,0.00043835,30]
[325340876,1714744247332,-500.0,0.00043835,30]
[325340878,1714744247342,-500.0,0.00043835,30]
[325340880,1714744247352,-500.0,0.00043835,30]
[325340883,1714744247361,-500.0,0.00043835,30]
[325340884,1714744247371,-500.0,0.00043835,30]
[325340887,1714744247381,-1642.41,0.00043835,30]
[325340888,1714744247391,-500.0,0.00043835,30]
[325340891,1714744247401,-1251.0,0.00043835,30]
[325340892,1714744247411,-500.0,0.00043835,30]
[325340895,1714744247421,-500.0,0.00043835,30]
[325340896,1714744247433,-500.0,0.00043835,30]
[325340899,1714744247442,-888.59,0.00043835,30]
[325340901,1714744247452,-500.0,0.00043835,30]
[325340903,1714744247462,-500.0,0.00043835,30]
[325340905,1714744247472,-500.0,0.00043835,30]
[325340907,1714744247481,-523.12,0.00043835,30]
[325340909,1714744247490,-1440.09,0.00043835,30]
[325340911,1714744247499,-504.40644695,0.00043835,30]
[325340913,1714744247509,-500.0,0.00043835,30]
[325340915,1714744247518,-500.41825727,0.00043835,30]
[325340917,1714744247528,-500.0,0.00043835,30]
[325340919,1714744247540,-500.0,0.00043835,30]
[325340921,1714744247549,-500.0,0.00043835,30]
[325340923,1714744247561,-500.0,0.00043835,30]
[325340925,1714744247571,-610.18,0.00043835,30]
[325340926,1714744247581,-500.0,0.00043835,30]
[325340927,1714744247591,-500.0,0.00043835,30]
[325340928,1714744247601,-500.39747413,0.00043835,30]
[325340929,1714744247611,-600.8,0.00043835,30]
[325340930,1714744247621,-500.0,0.00043835,30]
[325340931,1714744247631,-499.63237177,0.00043835,30]
[325340932,1714744247640,-500.0,0.00043835,30]
[325340933,1714744247650,-500.0,0.00043835,30]
[325340934,1714744247659,-1683.72,0.00043835,30]
[325340935,1714744247669,-500.0,0.00043835,2]
[325340936,1714744247680,-879.34,0.00043835,30]
[325340937,1714744247690,-263.40450315,0.00043835,2]
[325340939,1714744247699,-500.0,0.00043835,30]
[325340941,1714744247709,-500.0,0.00043835,30]
[325340943,1714744247718,-1481.58,0.00043835,30]
[325340945,1714744247728,-1863.85,0.00043835,30]
[325340947,1714744247737,-725.6,0.00043835,30]
[325340949,1714744247747,-500.0,0.00043835,30]
[325340951,1714744247756,-500.0,0.00043835,30]
[325340953,1714744247765,-500.0,0.00043835,30]
[325340955,1714744247774,-500.0,0.00043835,30]
[325340957,1714744247783,-500.0,0.00043835,30]
[325340959,1714744247792,-500.0,0.00043835,30]
[325340960,1714744247802,-500.0,0.00043835,30]
[325340962,1714744247811,-500.0,0.00043835,30]
[325340964,1714744247821,-614.04,0.00043835,30]
[325340967,1714744247831,-988.06,0.00043835,30]
[325340969,1714744247840,-503.36770022,0.00043835,30]
[325340970,1714744247849,-500.0,0.00043835,30]
[325340973,1714744247859,-500.0,0.00043835,30]
[325340974,1714744247868,-699.32,0.00043835,30]
[325340977,1714744247878,-581.14,0.00043835,30]
[325340978,1714744247887,-500.0,0.00043835,31]
[325340980,1714744247897,-1073.83,0.00043835,30]
[325340983,1714744247907,-500.0,0.00043835,32]
[325340984,1714744247918,-500.0,0.00043835,33]
[325340987,1714744247930,-500.0,0.00043835,34]
[325340989,1714744247939,-500.0,0.00043835,35]
[325340991,1714744247948,-500.0,0.00043835,36]
[325340993,1714744247959,-500.0,0.00043835,37]
[325340994,1714744247968,-500.0,0.00043835,38]
[325340997,1714744247978,-500.0,0.00043835,39]
[325340999,1714744247988,-500.0,0.00043835,40]
[325341001,1714744247997,-500.0,0.00043835,41]
[325341003,1714744248007,-500.0,0.00043835,42]
[325341005,1714744248016,-500.0,0.00043835,43]
[325341007,1714744248026,-509.12821985,0.00043835,44]
[325341009,1714744248035,-500.0,0.00043835,30]
[325341011,1714744248044,-156.54145916,0.00043835,30]
[325341012,1714744248053,-2439.2,0.00043835,2]
[325341015,1714744248063,-1221.1,0.00043835,30]
[325341017,1714744248072,-1426.29,0.00043835,30]
[325341018,1714744248082,-1094.11,0.00043835,30]
[325341020,1714744248091,-500.0,0.00043835,30]
[325341022,1714744248102,-500.0,0.00043835,30]
[325341024,1714744248112,-500.0,0.00043835,30]
[325341026,1714744248122,-502.80914804,0.00043835,15]
[325341027,1714744248132,-500.0,0.00043835,2]
[325341028,1714744248142,-500.0,0.00043835,30]
[325341029,1714744248152,-500.0,0.00043835,30]
[325341030,1714744248162,-503.03814046,0.00043835,30]
[325341031,1714744248172,-1187.31,0.00043835,30]
[325341032,1714744248183,-563.97,0.00043835,30]
[325341033,1714744248192,-500.0,0.00043835,30]
[325341034,1714744248202,-500.0,0.00043835,30]
[325341035,1714744248212,-533.61,0.00043835,30]
[325341036,1714744248221,-500.0,0.00043835,30]
[325341037,1714744248231,-500.0,0.00043835,30]